[Event "NED-ch Women 2018"]
[Site "Amsterdam"]
[Date "2018.07.07"]
[Round "6"]
[White "Haast, Anne"]
[Black "Ratsma, Rosa"]
[Result "1/2-1/2"]
[ECO "B36"]
[WhiteElo "2343"]
[BlackElo "2265"]
[Annotator "NA"]
[PlyCount "99"]
[EventDate "2018.07.02"]
[EventType "tourn"]
[EventCountry "NED"]
[SourceTitle "playchess.com"]
[Source "ChessBase"]
[SourceQuality "1"]
[TimeControl "40/5400+30:1800+30"]

1. e4 {[%emt 0:00:00]} c5 {[%emt 0:00:00]} 2. Nf3 {[%emt 0:00:01]} Nc6 {[%emt 0:00:00]} 3. d4 {[%emt 0:07:34]} cxd4 {[%emt 0:00:04]} 4. Nxd4 {[%emt 0:00:32]} g6 {[%emt 0:00:19]} 5. c4 {[%emt 0:04:48]} Nf6 {[%emt 0:00:26]} 6. Nc3 {[%emt 0:01:27]} d6 {[%emt 0:00:15]} 7. Be2 {[%emt 0:05:08]} Nxd4 {[%emt 0:00:19] LiveBook: 2054 Games} 8. Qxd4 {[%emt 0:00:05]} Bg7 {[%emt 0:00:11]} 9. Be3 {[%emt 0:01:20]} O-O {[%emt 0:00:27]} 10. Qd2 {[%emt 0:00:41]} a5 {[%emt 0:00:22]} 11. Rd1 {[%emt 0:05:50]} Be6 {[%emt 0:02:49]} 12. b3 {[%emt 0:01:33]} a4 {[%emt 0:01:19]} 13. e5 {[%emt 0:06:47]} Ng4 {[%emt 0:08:24]} 14. Bxg4 {[%emt 0:08:18]} Bxg4 {[%emt 0:00:16]} 15. f3 {[%emt 0:00:21]} Bf5 {[%emt 0:09:14]} (15... Be6 $5 {[%cal Ra4b3]}) 16. Nxa4 {[%emt 0:03:46]} Bxe5 {[%emt 0:01:35]} 17. O-O {[%emt 0:02:14]} Qa5 {[%emt 0:09:37]} 18. Qxa5 {[%emt 0:06:08]} Rxa5 {[%emt 0:00:07]} 19. Bb6 {[%emt 0:00:35]} Ra6 {[%emt 0:03:07]} 20. Bd4 {[%emt 0:01:30]} Bf4 {[%emt 0:13:39]} 21. g3 {[%emt 0:10:51]} Bh6 {[%emt 0:01:00]} 22. Rfe1 {[%emt 0:03:41]} Bc2 {[%emt 0:11:33]} 23. Ra1 {[%emt 0:00:10]} e5 {[%emt 0:03:00]} 24. Be3 {[%emt 0:03:05]} Bg7 {[%emt 0:01:11]} 25. Rac1 {[%emt 0:01:08]} Bf5 {[%emt 0:06:07]} 26. Nc3 {[%emt 0:02:42]} Be6 {[%emt 0:03:52]} 27. a4 {[%emt 0:02:07]} f5 {[%emt 0:03:38]} 28. Rcd1 {[%emt 0:01:05]} Rc8 {[%emt 0:02:17]} 29. Nd5 {[%emt 0:02:26]} Kf7 {[%emt 0:00:52]} 30. Nb4 {[%emt 0:01:34]} Raa8 {[%emt 0:02:38]} 31. Rxd6 {[%emt 0:00:40]} b5 {[%emt 0:00:54]} 32. Rxe6 {[%emt 0:04:29]} Kxe6 {[%emt 0:00:16]} 33. axb5 {[%emt 0:00:22]} Ra3 {[%emt 0:02:20]} 34. Rb1 {[%emt 0:01:33]} f4 {[%emt 0:00:46]} 35. Bf2 {[%emt 0:01:22]} fxg3 {[%emt 0:02:01]} 36. hxg3 {[%emt 0:00:04]} e4 {[%emt 0:02:01]} 37. b6 {[%emt 0:04:07]} Be5 {[%emt 0:04:21]} 38. fxe4 {[%emt 0:00:43]} Rf8 {[%emt 0:01:35]} 39. Nd3 {[%emt 0:03:41]} Ra2 {[%emt 0:02:13]} 40. b7 {[%emt 0:03:43]} Bb8 {[%emt 0:04:06]} 41. Nf4+ {[%emt 0:13:14]} Kd7 {[%emt 0:07:35]} 42. Bc5 {[%emt 0:02:25]} Rf7 {[%emt 0:06:13]} 43. b4 {[%emt 0:01:06]} Kc6 {[%emt 0:03:08]} 44. Rd1 {[%emt 0:03:35]} Kxb7 {[%emt 0:02:07]} 45. Bd6 {[%emt 0:00:56]} Bxd6 {[%emt 0:03:05]} 46. Rxd6 {[%emt 0:00:01]} g5 {[%emt 0:00:20]} 47. Ne6 {[%emt 0:03:23]} Rf3 {[%emt 0:01:39]} 48. e5 {[%emt 0:01:23]} Rxg3+ {[%emt 0:00:46]} 49. Kh1 {[%emt 0:00:34]} Re3 {[%emt 0:03:03]} 50. Rd7+ {[%emt 0:00:32]} 1/2-1/2

[Event "NED-ch Women 2018"]
[Site "Amsterdam"]
[Date "2018.07.07"]
[Round "6"]
[White "Lanchava, Tea"]
[Black "Hortensius, Lisa"]
[Result "1-0"]
[ECO "A21"]
[WhiteElo "2310"]
[BlackElo "2169"]
[Annotator "NA"]
[PlyCount "97"]
[EventDate "2018.07.02"]
[EventType "tourn"]
[EventCountry "NED"]
[SourceTitle "playchess.com"]
[Source "ChessBase"]
[SourceQuality "1"]
[TimeControl "40/5400+30:1800+30"]

1. c4 g6 2. g3 Bg7 3. Bg2 e5 4. e4 Ne7 5. d3 d6 6. Nc3 c5 7. h4 h5 8. Bg5 f6 9. Be3 Nbc6 10. Qd2 Be6 11. Nh3 Qd7 12. f3 Nd4 13. Nf2 f5 14. Bg5 O-O-O 15. Nd5 Bxd5 16. exd5 Kb8 17. O-O Rdf8 18. b4 cxb4 19. Rab1 b3 20. Be3 Nc8 21. Bxd4 exd4 22. f4 Bf6 23. axb3 Re8 24. Bf3 Re7 25. b4 Rhe8 26. Ra1 Re3 27. Kg2 Qd8 28. Ra3 Qe7 29. Nd1 Re1 30. Rf2 Qd8 31. Be2 R1xe2 32. Rxe2 Re7 33. Ra2 Qe8 34. Rxe7 Qxe7 35. Qe2 Qf8 36. Qe6 Kc7 37. Re2 Ne7 38. c5 Nc8 39. Nb2 Be7 40. c6 bxc6 41. dxc6 Qe8 42. b5 a6 43. Qd7+ Qxd7 44. cxd7 Kxd7 45. bxa6 d5 46. Na4 Bd6 47. Rb2 Kc6 48. Rc2+ Kd7 49. Nc5+ 1-0

[Event "NED-ch Women 2018"]
[Site "Amsterdam"]
[Date "2018.07.07"]
[Round "6"]
[White "Keetman, Maaike"]
[Black "Peng, Zhaoqin"]
[Result "1-0"]
[ECO "B12"]
[WhiteElo "2190"]
[BlackElo "2352"]
[Annotator "NA"]
[PlyCount "122"]
[EventDate "2018.07.02"]
[EventType "tourn"]
[EventCountry "NED"]
[SourceTitle "playchess.com"]
[Source "ChessBase"]
[SourceQuality "1"]
[TimeControl "40/5400+30:1800+30"]

1. e4 {[%emt 0:00:00]} c6 {[%emt 0:00:00]} 2. d4 {[%emt 0:00:00]} d5 {[%emt 0:00:00]} 3. Nd2 {[%emt 0:00:00]} g6 {[%emt 0:00:53]} 4. h3 {[%emt 0:00:22]} Bg7 {[%emt 0:00:59]} 5. Ngf3 {[%emt 0:00:30]} Nh6 {[%emt 0:01:46]} 6. Bd3 {[%emt 0:03:33]} O-O {[%emt 0:06:57]} 7. O-O {[%emt 0:02:22]} b6 {[%emt 0:06:16]} 8. Qe2 {[%emt 0:08:50]} a5 {[%emt 0:16:09]} 9. Re1 {[%emt 0:06:32]} e6 {[%emt 0:03:00]} 10. c3 {[%emt 0:05:28]} f6 {[%emt 0:04:31]} 11. Nf1 {[%emt 0:11:45]} Nf7 {[%emt 0:00:17]} 12. c4 {[%emt 0:17:43]} Na6 {[%emt 0:12:56]} 13. Ne3 {[%emt 0:09:39]} Nb4 {[%emt 0:01:19]} 14. exd5 {[%emt 0:01:26]} exd5 {[%emt 0:04:34]} 15. cxd5 {[%emt 0:02:21]} Nxd3 {[%emt 0:06:23]} 16. Qxd3 {[%emt 0:00:05]} cxd5 {[%emt 0:00:03]} 17. Bd2 {[%emt 0:03:26]} Bb7 {[%emt 0:03:11]} 18. b4 {[%emt 0:06:41]} Nd6 {[%emt 0:04:18]} 19. bxa5 {[%emt 0:02:33]} bxa5 {[%emt 0:00:05]} 20. Rab1 {[%emt 0:02:32]} Rf7 {[%emt 0:08:03]} 21. Rec1 {[%emt 0:00:22]} Ba6 {[%emt 0:00:45]} 22. Qa3 {[%emt 0:01:09]} Nc4 {[%emt 0:01:12]} 23. Nxc4 {[%emt 0:01:23]} Bxc4 {[%emt 0:00:08]} 24. Bf4 {[%emt 0:00:25]} a4 {[%emt 0:02:10]} 25. Bd6 {[%emt 0:03:56]} Bxa2 {[%emt 0:00:47]} 26. Ra1 {[%emt 0:01:08]} Bc4 {[%emt 0:02:08]} 27. Qb4 {[%emt 0:02:08]} Bh6 {[%emt 0:01:17]} 28. Rcb1 {[%emt 0:01:47]} Bb3 {[%emt 0:04:09]} 29. Bc5 {[%emt 0:01:25]} Rb8 {[%emt 0:02:49]} 30. Qc3 {[%emt 0:00:23]} Bf8 {[%emt 0:02:05]} 31. Nd2 {[%emt 0:01:37]} Rfb7 {[%emt 0:02:01]} 32. Ra3 {[%emt 0:01:53]} Bxc5 {[%emt 0:01:58]} 33. dxc5 {[%emt 0:00:57]} d4 {[%emt 0:00:26]} 34. Qg3 {[%emt 0:00:56]} Bc2 {[%emt 0:02:00]} 35. Rxb7 {[%emt 0:01:20]} Rxb7 {[%emt 0:00:01]} 36. Nc4 {[%emt 0:00:34]} Qd5 {[%emt 0:00:47]} 37. Nb6 {[%emt 0:00:43]} Qxc5 {[%emt 0:00:31]} 38. Nxa4 {[%emt 0:00:10]} Qc6 {[%emt 0:00:50]} 39. Qg4 {[%emt 0:00:43]} Rb1+ {[%emt 0:00:42]} 40. Kh2 {[%emt 0:00:04]} Bxa4 {[%emt 0:00:25]} 41. Qxd4 {[%emt 0:02:06]} Qc7+ {[%emt 0:08:17]} 42. f4 {[%emt 0:01:10]} Bc6 {[%emt 0:05:55]} 43. Qxf6 {[%emt 0:05:51]} Qd7 {[%emt 0:06:32]} 44. Re3 {[%emt 0:02:29]} Qd5 {[%emt 0:01:40]} 45. Qe6+ {[%emt 0:04:14]} Qxe6 {[%emt 0:00:16]} 46. Rxe6 {[%emt 0:00:05]} Rc1 {[%emt 0:01:40]} 47. Re2 {[%emt 0:01:03]} Kf7 {[%emt 0:00:35]} 48. g4 {[%emt 0:04:35]} Rc3 {[%emt 0:01:32]} 49. Ra2 {[%emt 0:01:31]} Ke6 {[%emt 0:04:38]} 50. Ra7 {[%emt 0:03:28]} Bd7 {[%emt 0:01:04]} 51. Ra5 {[%emt 0:01:31]} h6 {[%emt 0:00:41]} 52. f5+ {[%emt 0:00:58]} Kf6 {[%emt 0:01:24]} 53. fxg6 {[%emt 0:00:55]} Kxg6 {[%emt 0:00:02]} 54. Ra6+ {[%emt 0:01:47]} Kg5 {[%emt 0:00:24]} 55. h4+ {[%emt 0:02:31]} Kxg4 {[%emt 0:01:58]} 56. Rxh6 {[%emt 0:00:07]} Rc2+ {[%emt 0:00:36]} 57. Kg1 {[%emt 0:00:11]} Kg3 {[%emt 0:00:18]} 58. Kf1 {[%emt 0:00:55]} Bg4 {[%emt 0:00:24]} 59. Ke1 {[%emt 0:00:39]} Re2+ {[%emt 0:00:26]} 60. Kf1 {[%emt 0:00:05]} Re8 {[%emt 0:01:11]} 61. Rg6 {[%emt 0:00:31]} Rd8 {[%emt 0:00:12]} 1-0